[Event "Late-Titled-Tuesday-Blitz-February-06-2024"]
[Site "Chess.com"]
[Date "2024.02.06"]
[Round "5"]
[White "kingofthenil"]
[Black "bitter-cikolata"]
[Result "1-0"]
[WhiteElo "2675"]
[BlackElo "2479"]
[TimeControl "180+1"]
[EndTime "14:51:11 PST"]
[Termination "kingofthenil won by resignation"]

1. d4 {[%clk 0:03:00.9]} 1... Nf6 {[%clk 0:02:58.9]} 2. Nf3 {[%clk 0:03:01]}
2... g6 {[%clk 0:02:57.4]} 3. Nbd2 {[%clk 0:03:00.2]} 3... d5 {[%clk 0:02:57]}
4. b4 {[%clk 0:02:59.9]} 4... Bg7 {[%clk 0:02:57.1]} 5. Bb2 {[%clk 0:03:00.5]}
5... O-O {[%clk 0:02:56.6]} 6. e3 {[%clk 0:03:01.2]} 6... a5 {[%clk 0:02:53.2]}
7. b5 {[%clk 0:03:01.5]} 7... b6 {[%clk 0:02:51.5]} 8. c4 {[%clk 0:03:01.1]}
8... Bb7 {[%clk 0:02:49]} 9. a4 {[%clk 0:03:01.5]} 9... Nbd7 {[%clk 0:02:47.8]}
10. Rc1 {[%clk 0:03:01.4]} 10... e6 {[%clk 0:02:47.3]} 11. c5 {[%clk 0:03:01]}
11... bxc5 {[%clk 0:02:38]} 12. dxc5 {[%clk 0:03:01.9]} 12... c6 {[%clk
0:02:38.5]} 13. Nd4 {[%clk 0:02:59.3]} 13... Qc7 {[%clk 0:02:28.8]} 14. bxc6
{[%clk 0:02:57.8]} 14... Bxc6 {[%clk 0:02:29.7]} 15. Nxc6 {[%clk 0:02:58.5]}
15... Qxc6 {[%clk 0:02:30.6]} 16. Bb5 {[%clk 0:02:59.3]} 16... Qc7 {[%clk
0:02:31]} 17. O-O {[%clk 0:02:56.9]} 17... Rfc8 {[%clk 0:02:17.9]} 18. Bd4
{[%clk 0:02:54.3]} 18... e5 {[%clk 0:02:17.1]} 19. Bb2 {[%clk 0:02:52.6]} 19...
Nxc5 {[%clk 0:02:09.4]} 20. Nb3 {[%clk 0:02:52]} 20... Qe7 {[%clk 0:02:03.6]}
21. Ba3 {[%clk 0:02:46.8]} 21... Nfe4 {[%clk 0:01:49.8]} 22. Nxc5 {[%clk
0:02:43.2]} 22... Nxc5 {[%clk 0:01:48.4]} 23. Qxd5 {[%clk 0:02:43.5]} 23... Bf8
{[%clk 0:01:34.6]} 24. Bxc5 {[%clk 0:02:27.6]} 24... Rxc5 {[%clk 0:01:27.3]} 25.
Qxa8 {[%clk 0:02:25.1]} 1-0

[Event "Late-Titled-Tuesday-Blitz-February-06-2024"]
[Site "Chess.com"]
[Date "2024.02.06"]
[Round "5"]
[White "N_Mullodzhanov"]
[Black "GAusal"]
[Result "1-0"]
[WhiteElo "2473"]
[BlackElo "2300"]
[TimeControl "180+1"]
[EndTime "14:51:44 PST"]
[Termination "N_Mullodzhanov won by resignation"]

1. e4 {[%clk 0:03:00.9]} 1... c5 {[%clk 0:02:58.6]} 2. c3 {[%clk 0:03:00.4]}
2... e6 {[%clk 0:02:59]} 3. Nf3 {[%clk 0:02:59.8]} 3... Nc6 {[%clk 0:02:58.7]}
4. d4 {[%clk 0:02:59.6]} 4... cxd4 {[%clk 0:02:58]} 5. cxd4 {[%clk 0:03:00.5]}
5... d5 {[%clk 0:02:58.2]} 6. e5 {[%clk 0:03:00.1]} 6... a6 {[%clk 0:02:57.9]}
7. Nc3 {[%clk 0:03:00]} 7... Bb4 {[%clk 0:02:57.7]} 8. Bd3 {[%clk 0:02:59.7]}
8... Nge7 {[%clk 0:02:57.7]} 9. a3 {[%clk 0:02:59.8]} 9... Ba5 {[%clk
0:02:55.1]} 10. O-O {[%clk 0:02:59.9]} 10... O-O {[%clk 0:02:54.3]} 11. Bxh7+
{[%clk 0:02:57.6]} 11... Kxh7 {[%clk 0:02:53.7]} 12. Ng5+ {[%clk 0:02:57.8]}
12... Kg6 {[%clk 0:02:49.3]} 13. h4 {[%clk 0:02:55.4]} 13... Rh8 {[%clk
0:02:47.3]} 14. Qg4 {[%clk 0:02:45.6]} 14... f5 {[%clk 0:02:41.2]} 15. Qg3
{[%clk 0:02:21.8]} 15... f4 {[%clk 0:02:04.3]} 16. Qg4 {[%clk 0:02:21.4]} 16...
Nf5 {[%clk 0:01:54.5]} 17. Nxe6+ {[%clk 0:02:15.6]} 17... Kf7 {[%clk 0:01:54.4]}
18. Nxd8+ {[%clk 0:02:06.8]} 18... Nxd8 {[%clk 0:01:50.8]} 19. h5 {[%clk
0:01:52.4]} 19... Be6 {[%clk 0:01:36.1]} 20. Nxd5 {[%clk 0:01:46.6]} 20... Nc6
{[%clk 0:01:30]} 21. Qg6+ {[%clk 0:01:45.1]} 1-0

[Event "Late-Titled-Tuesday-Blitz-February-06-2024"]
[Site "Chess.com"]
[Date "2024.02.06"]
[Round "5"]
[White "kuli4ik"]
[Black "dennisodessa"]
[Result "1-0"]
[WhiteElo "2862"]
[BlackElo "2597"]
[TimeControl "180+1"]
[EndTime "14:52:18 PST"]
[Termination "kuli4ik won by resignation"]

1. Nf3 {[%clk 0:03:00.9]} 1... Nf6 {[%clk 0:02:59.2]} 2. g3 {[%clk 0:02:58.5]}
2... b5 {[%clk 0:02:59.6]} 3. Bg2 {[%clk 0:02:58.1]} 3... Bb7 {[%clk 0:02:59.8]}
4. O-O {[%clk 0:02:58.7]} 4... e6 {[%clk 0:03:00.5]} 5. d3 {[%clk 0:02:59.1]}
5... Be7 {[%clk 0:03:00.9]} 6. e4 {[%clk 0:02:58.1]} 6... O-O {[%clk 0:03:01]}
7. e5 {[%clk 0:02:58.4]} 7... Ne8 {[%clk 0:03:00.9]} 8. Qe2 {[%clk 0:02:57.6]}
8... d6 {[%clk 0:03:01.1]} 9. d4 {[%clk 0:02:57]} 9... c5 {[%clk 0:02:56.9]} 10.
exd6 {[%clk 0:02:51.8]} 10... Bxd6 {[%clk 0:02:56.8]} 11. dxc5 {[%clk
0:02:47.2]} 11... Bxc5 {[%clk 0:02:57.7]} 12. Rd1 {[%clk 0:02:46.4]} 12... Qb6
{[%clk 0:02:57.5]} 13. Nbd2 {[%clk 0:02:45.4]} 13... Nf6 {[%clk 0:02:05.9]} 14.
Nb3 {[%clk 0:02:44.7]} 14... Be7 {[%clk 0:01:59.7]} 15. Be3 {[%clk 0:02:41.9]}
15... Qc7 {[%clk 0:02:00]} 16. Qxb5 {[%clk 0:02:37]} 16... Nbd7 {[%clk
0:01:56.7]} 17. Bf4 {[%clk 0:02:28.5]} 17... Qc8 {[%clk 0:01:54.4]} 18. Qe2
{[%clk 0:02:25.2]} 18... a5 {[%clk 0:01:51.6]} 19. Nbd4 {[%clk 0:02:11]} 19...
Ba6 {[%clk 0:01:43.6]} 20. Qe1 {[%clk 0:02:06.4]} 20... Nd5 {[%clk 0:01:44.5]}
21. Nxe6 {[%clk 0:01:57.2]} 21... Nxf4 {[%clk 0:01:40.5]} 22. Nxf4 {[%clk
0:01:56.8]} 22... Bf6 {[%clk 0:01:40.2]} 23. c3 {[%clk 0:01:55]} 23... Re8
{[%clk 0:01:37]} 24. Qd2 {[%clk 0:01:53.8]} 24... Nc5 {[%clk 0:01:37.9]} 25. Nd5
{[%clk 0:01:45.9]} 25... Bd8 {[%clk 0:01:38]} 26. Re1 {[%clk 0:01:40.6]} 26...
Ne4 {[%clk 0:01:35.3]} 27. Qd4 {[%clk 0:01:36.9]} 27... f5 {[%clk 0:01:33.3]}
28. Nd2 {[%clk 0:01:32]} 28... Bf6 {[%clk 0:01:25.5]} 1-0

[Event "Late-Titled-Tuesday-Blitz-February-06-2024"]
[Site "Chess.com"]
[Date "2024.02.06"]
[Round "5"]
[White "lluiss"]
[Black "Escanor89"]
[Result "0-1"]
[WhiteElo "2158"]
[BlackElo "2523"]
[TimeControl "180+1"]
[EndTime "14:52:48 PST"]
[Termination "Escanor89 won by resignation"]

1. d4 {[%clk 0:03:00.9]} 1... Nf6 {[%clk 0:02:59.3]} 2. Nf3 {[%clk 0:02:59.5]}
2... g6 {[%clk 0:02:58.3]} 3. g3 {[%clk 0:02:58.9]} 3... Bg7 {[%clk 0:02:58.4]}
4. Bg2 {[%clk 0:02:59.5]} 4... d6 {[%clk 0:02:58.7]} 5. O-O {[%clk 0:02:59.4]}
5... O-O {[%clk 0:02:59.2]} 6. c4 {[%clk 0:02:59.5]} 6... c6 {[%clk 0:02:57.3]}
7. Nc3 {[%clk 0:02:54.8]} 7... Bf5 {[%clk 0:02:56.9]} 8. Nh4 {[%clk 0:02:53.3]}
8... Be6 {[%clk 0:02:54.6]} 9. d5 {[%clk 0:02:52.2]} 9... cxd5 {[%clk
0:02:54.6]} 10. cxd5 {[%clk 0:02:52.3]} 10... Bd7 {[%clk 0:02:54.6]} 11. Nf3
{[%clk 0:02:52.6]} 11... Na6 {[%clk 0:02:52.4]} 12. Nd4 {[%clk 0:02:52.6]} 12...
Rc8 {[%clk 0:02:49.4]} 13. Qd2 {[%clk 0:02:07]} 13... Qb6 {[%clk 0:02:40.2]} 14.
Nb3 {[%clk 0:02:05.4]} 14... Nc5 {[%clk 0:02:26.7]} 15. Nxc5 {[%clk 0:01:58.4]}
15... Rxc5 {[%clk 0:02:20.7]} 16. Qd1 {[%clk 0:01:35.5]} 16... Qa6 {[%clk
0:02:07.3]} 17. Be3 {[%clk 0:01:33.3]} 17... Rc7 {[%clk 0:02:06]} 18. Bd4 {[%clk
0:01:31.6]} 18... Rfc8 {[%clk 0:02:04.6]} 19. Qd2 {[%clk 0:01:24.2]} 19... Rc4
{[%clk 0:02:02.9]} 20. e3 {[%clk 0:01:23.7]} 20... b5 {[%clk 0:02:00.3]} 21. b3
{[%clk 0:01:23.6]} 21... Rxc3 {[%clk 0:01:26]} 22. Bxc3 {[%clk 0:01:22.6]} 22...
Ne4 {[%clk 0:01:26.2]} 23. Bxe4 {[%clk 0:01:19.4]} 23... Bxc3 {[%clk 0:01:26]}
24. Qd3 {[%clk 0:01:14.8]} 24... Bxa1 {[%clk 0:01:25.2]} 25. Rxa1 {[%clk
0:01:14]} 25... Qb6 {[%clk 0:01:22]} 26. h4 {[%clk 0:01:12.5]} 26... Qc5 {[%clk
0:01:18.9]} 27. h5 {[%clk 0:01:10]} 27... Qc3 {[%clk 0:01:16.5]} 28. hxg6 {[%clk
0:01:09.3]} 28... Qxa1+ {[%clk 0:01:15.8]} 0-1

[Event "Late-Titled-Tuesday-Blitz-February-06-2024"]
[Site "Chess.com"]
[Date "2024.02.06"]
[Round "5"]
[White "JaackCamel"]
[Black "elchacal664"]
[Result "0-1"]
[WhiteElo "2192"]
[BlackElo "2405"]
[TimeControl "180+1"]
[EndTime "14:52:55 PST"]
[Termination "elchacal664 won by resignation"]

1. d4 {[%clk 0:03:00.9]} 1... d5 {[%clk 0:02:17.1]} 2. c4 {[%clk 0:02:58.9]}
2... dxc4 {[%clk 0:02:18]} 3. Nf3 {[%clk 0:02:58.2]} 3... Nf6 {[%clk 0:02:15.6]}
4. e3 {[%clk 0:02:57]} 4... e6 {[%clk 0:02:16.3]} 5. Bxc4 {[%clk 0:02:56.5]}
5... c5 {[%clk 0:02:17.2]} 6. O-O {[%clk 0:02:55.1]} 6... cxd4 {[%clk
0:02:17.4]} 7. exd4 {[%clk 0:02:54.6]} 7... Be7 {[%clk 0:02:17.9]} 8. Nc3 {[%clk
0:02:52.5]} 8... O-O {[%clk 0:02:17.9]} 9. d5 {[%clk 0:02:46.9]} 9... exd5
{[%clk 0:02:15.6]} 10. Nxd5 {[%clk 0:02:45.7]} 10... Nxd5 {[%clk 0:02:16.5]} 11.
Qxd5 {[%clk 0:02:39.8]} 11... Nc6 {[%clk 0:02:16.7]} 12. Qxd8 {[%clk 0:02:39.3]}
12... Rxd8 {[%clk 0:02:15.4]} 13. Be3 {[%clk 0:02:35]} 13... Bg4 {[%clk
0:02:12.1]} 14. Nd2 {[%clk 0:02:16.3]} 14... Rac8 {[%clk 0:01:58.7]} 15. h3
{[%clk 0:02:13.6]} 15... Bh5 {[%clk 0:01:56]} 16. Rac1 {[%clk 0:02:09.2]} 16...
Bf6 {[%clk 0:01:55.5]} 17. b3 {[%clk 0:02:02]} 17... Bg6 {[%clk 0:01:53.1]} 18.
Rfd1 {[%clk 0:01:49.6]} 18... Bb2 {[%clk 0:01:51]} 19. Nf3 {[%clk 0:01:39.1]}
19... Bxc1 {[%clk 0:01:48.3]} 20. Rxc1 {[%clk 0:01:35]} 20... Na5 {[%clk
0:01:45.4]} 21. Bxa7 {[%clk 0:01:12.5]} 21... b5 {[%clk 0:01:38.4]} 22. Bb6
{[%clk 0:01:12.4]} 22... bxc4 {[%clk 0:01:35.3]} 23. Bxa5 {[%clk 0:01:11.5]}
23... cxb3 {[%clk 0:01:34.3]} 24. Re1 {[%clk 0:01:04.3]} 24... bxa2 {[%clk
0:01:30]} 25. Bxd8 {[%clk 0:01:03.3]} 25... Rxd8 {[%clk 0:01:30.9]} 26. Ne5
{[%clk 0:01:01.3]} 26... Bb1 {[%clk 0:01:29.1]} 27. Nc6 {[%clk 0:01:00.6]} 27...
Rf8 {[%clk 0:01:22.3]} 0-1

[Event "Late-Titled-Tuesday-Blitz-February-06-2024"]
[Site "Chess.com"]
[Date "2024.02.06"]
[Round "5"]
[White "TheoSlade"]
[Black "OverallStranger"]
[Result "1-0"]
[WhiteElo "2465"]
[BlackElo "2281"]
[TimeControl "180+1"]
[EndTime "14:52:58 PST"]
[Termination "TheoSlade won by resignation"]

1. d4 {[%clk 0:03:00.9]} 1... e6 {[%clk 0:02:55]} 2. c4 {[%clk 0:03:00.9]} 2...
f5 {[%clk 0:02:53.6]} 3. g3 {[%clk 0:03:01.2]} 3... Nf6 {[%clk 0:02:53.7]} 4.
Bg2 {[%clk 0:03:01.8]} 4... c6 {[%clk 0:02:54.1]} 5. Qc2 {[%clk 0:03:00.3]} 5...
d5 {[%clk 0:02:53.6]} 6. Nh3 {[%clk 0:02:58.7]} 6... Be7 {[%clk 0:02:52.1]} 7.
O-O {[%clk 0:02:58.2]} 7... O-O {[%clk 0:02:51.8]} 8. Bf4 {[%clk 0:02:50.8]}
8... Nbd7 {[%clk 0:02:49.9]} 9. Ng5 {[%clk 0:02:42.4]} 9... Nb8 {[%clk
0:02:31.7]} 10. Nd2 {[%clk 0:02:42.5]} 10... h6 {[%clk 0:02:31.6]} 11. Nh3
{[%clk 0:02:38.3]} 11... Nbd7 {[%clk 0:02:27.1]} 12. f3 {[%clk 0:02:35.5]} 12...
b6 {[%clk 0:02:09.9]} 13. cxd5 {[%clk 0:02:27.4]} 13... cxd5 {[%clk 0:02:04]}
14. Qc6 {[%clk 0:02:27.7]} 14... Ba6 {[%clk 0:01:58.3]} 15. Qxe6+ {[%clk
0:02:28.3]} 15... Kh7 {[%clk 0:01:58.3]} 16. Qxf5+ {[%clk 0:02:25.8]} 16... Kg8
{[%clk 0:01:58.5]} 17. Qe6+ {[%clk 0:02:22.3]} 17... Kh8 {[%clk 0:01:58.4]} 18.
Be5 {[%clk 0:02:12.4]} 18... Re8 {[%clk 0:01:49.9]} 19. Nf4 {[%clk 0:02:05.7]}
19... Bb4 {[%clk 0:01:44.4]} 20. Ng6+ {[%clk 0:02:02.7]} 20... Kh7 {[%clk
0:01:44.7]} 21. Qf5 {[%clk 0:02:02.7]} 21... Kg8 {[%clk 0:01:39.6]} 22. Nb3
{[%clk 0:01:47.5]} 22... Bxe2 {[%clk 0:01:37.2]} 23. Rfe1 {[%clk 0:01:47.7]}
23... Bxe1 {[%clk 0:01:36.3]} 24. Rxe1 {[%clk 0:01:47.1]} 24... Bc4 {[%clk
0:01:36.2]} 25. Bh3 {[%clk 0:01:39]} 25... Bxb3 {[%clk 0:01:33.4]} 26. axb3
{[%clk 0:01:38.1]} 26... Rc8 {[%clk 0:01:26.6]} 27. Nf4 {[%clk 0:01:34.1]} 27...
Qe7 {[%clk 0:01:21.1]} 28. Nxd5 {[%clk 0:01:29.2]} 28... Nxe5 {[%clk 0:00:44.1]}
29. Nxe7+ {[%clk 0:01:27.9]} 29... Rxe7 {[%clk 0:00:42.3]} 30. Qxc8+ {[%clk
0:01:27.5]} 1-0

[Event "Late-Titled-Tuesday-Blitz-February-06-2024"]
[Site "Chess.com"]
[Date "2024.02.06"]
[Round "5"]
[White "BeardedNM"]
[Black "SHIVACalypso"]
[Result "0-1"]
[WhiteElo "2254"]
[BlackElo "2533"]
[TimeControl "180+1"]
[EndTime "14:53:15 PST"]
[Termination "SHIVACalypso won by checkmate"]

1. e4 {[%clk 0:02:56.2]} 1... e6 {[%clk 0:02:59.4]} 2. d4 {[%clk 0:02:56.3]}
2... d5 {[%clk 0:02:58.4]} 3. e5 {[%clk 0:02:56.6]} 3... c5 {[%clk 0:02:58.3]}
4. c3 {[%clk 0:02:56.7]} 4... Nc6 {[%clk 0:02:58.9]} 5. Nf3 {[%clk 0:02:57]}
5... Bd7 {[%clk 0:02:59.5]} 6. Be2 {[%clk 0:02:56.2]} 6... f6 {[%clk 0:02:59.6]}
7. O-O {[%clk 0:02:55.6]} 7... fxe5 {[%clk 0:02:59.6]} 8. dxe5 {[%clk 0:02:56]}
8... Nh6 {[%clk 0:02:56.7]} 9. Bd3 {[%clk 0:02:39.5]} 9... Qc7 {[%clk
0:02:52.5]} 10. Bf4 {[%clk 0:02:07.3]} 10... Nf7 {[%clk 0:02:49.1]} 11. Re1
{[%clk 0:02:06.5]} 11... O-O-O {[%clk 0:02:48.3]} 12. c4 {[%clk 0:01:49.9]}
12... d4 {[%clk 0:02:47.7]} 13. a3 {[%clk 0:01:46.4]} 13... Be7 {[%clk
0:02:47.8]} 14. h3 {[%clk 0:01:36.6]} 14... g5 {[%clk 0:02:45.3]} 15. Bh2 {[%clk
0:01:21.8]} 15... h5 {[%clk 0:02:45.5]} 16. b4 {[%clk 0:00:48.5]} 16... g4
{[%clk 0:02:45.1]} 17. Nfd2 {[%clk 0:00:41.8]} 17... gxh3 {[%clk 0:02:41.4]} 18.
b5 {[%clk 0:00:37.1]} 18... Ncxe5 {[%clk 0:02:37.6]} 19. Nf3 {[%clk 0:00:26.3]}
19... Bd6 {[%clk 0:02:34.7]} 20. Nxe5 {[%clk 0:00:23]} 20... Bxe5 {[%clk
0:02:34.9]} 21. Bxe5 {[%clk 0:00:18.2]} 21... Nxe5 {[%clk 0:02:35.8]} 22. Be4
{[%clk 0:00:09.7]} 22... Rdg8 {[%clk 0:02:15.9]} 23. f4 {[%clk 0:00:07.6]} 23...
Ng4 {[%clk 0:02:03.9]} 24. Qa4 {[%clk 0:00:06.6]} 24... h2+ {[%clk 0:01:56.1]}
25. Kh1 {[%clk 0:00:03.5]} 25... Qxf4 {[%clk 0:01:56.5]} 26. Bxb7+ {[%clk
0:00:01.9]} 26... Kxb7 {[%clk 0:01:54.2]} 27. Qa6+ {[%clk 0:00:02.3]} 27... Kb8
{[%clk 0:01:53.7]} 28. b6 {[%clk 0:00:02.7]} 28... Nf2# {[%clk 0:01:53.1]} 0-1

[Event "Late-Titled-Tuesday-Blitz-February-06-2024"]
[Site "Chess.com"]
[Date "2024.02.06"]
[Round "5"]
[White "Vasily85"]
[Black "pinguino120"]
[Result "1-0"]
[WhiteElo "2506"]
[BlackElo "2270"]
[TimeControl "180+1"]
[EndTime "14:53:17 PST"]
[Termination "Vasily85 won by resignation"]

1. c4 {[%clk 0:01:19.1]} 1... c6 {[%clk 0:02:49.5]} 2. Nf3 {[%clk 0:01:15.3]}
2... d5 {[%clk 0:02:49.6]} 3. e3 {[%clk 0:01:15.5]} 3... Nf6 {[%clk 0:02:49.3]}
4. Nc3 {[%clk 0:01:15]} 4... Bf5 {[%clk 0:02:48.8]} 5. cxd5 {[%clk 0:01:14]}
5... cxd5 {[%clk 0:02:47.9]} 6. Qb3 {[%clk 0:01:14.5]} 6... Qb6 {[%clk
0:02:36.9]} 7. Nxd5 {[%clk 0:01:10]} 7... Nxd5 {[%clk 0:02:31.5]} 8. Qxd5 {[%clk
0:01:10.9]} 8... e6 {[%clk 0:02:31.6]} 9. Qb5+ {[%clk 0:00:52.2]} 9... Qxb5
{[%clk 0:02:29.1]} 10. Bxb5+ {[%clk 0:00:53.1]} 10... Nc6 {[%clk 0:02:29.7]} 11.
Nd4 {[%clk 0:00:51.5]} 11... Be4 {[%clk 0:02:28.6]} 12. f3 {[%clk 0:00:51.7]}
12... a6 {[%clk 0:02:19.7]} 13. fxe4 {[%clk 0:00:43.6]} 13... axb5 {[%clk
0:02:19.7]} 14. Nxb5 {[%clk 0:00:44.5]} 14... Rc8 {[%clk 0:02:19.5]} 15. Ke2
{[%clk 0:00:32.6]} 15... Be7 {[%clk 0:02:19.1]} 16. d4 {[%clk 0:00:31.2]} 16...
O-O {[%clk 0:02:19]} 17. Bd2 {[%clk 0:00:31.6]} 17... Nb4 {[%clk 0:02:17.1]} 18.
Bxb4 {[%clk 0:00:29.9]} 18... Bxb4 {[%clk 0:02:18]} 19. Rhc1 {[%clk 0:00:30.3]}
19... Rc6 {[%clk 0:02:10.6]} 20. a3 {[%clk 0:00:30.1]} 20... Be7 {[%clk
0:02:09.9]} 21. Rc3 {[%clk 0:00:25]} 21... Rfc8 {[%clk 0:02:09.2]} 22. Rac1
{[%clk 0:00:24.9]} 22... Rxc3 {[%clk 0:02:03.9]} 23. Rxc3 {[%clk 0:00:25.8]}
23... Rxc3 {[%clk 0:02:03.6]} 24. Nxc3 {[%clk 0:00:26.7]} 24... Kf8 {[%clk
0:02:03.1]} 25. Kd3 {[%clk 0:00:26.8]} 25... Ke8 {[%clk 0:02:03.4]} 26. Kc4
{[%clk 0:00:27.2]} 26... Kd7 {[%clk 0:02:03.9]} 27. Kb5 {[%clk 0:00:27.7]} 27...
Kc7 {[%clk 0:02:04.3]} 28. e5 {[%clk 0:00:25.4]} 28... Bg5 {[%clk 0:02:03.4]}
29. Nd1 {[%clk 0:00:25.5]} 29... h5 {[%clk 0:01:58.5]} 30. h3 {[%clk 0:00:24.8]}
30... Bh4 {[%clk 0:01:55.8]} 31. Kc4 {[%clk 0:00:23.5]} 31... g6 {[%clk
0:01:55.8]} 32. Nc3 {[%clk 0:00:23.2]} 32... Bf2 {[%clk 0:01:54.9]} 33. Kd3
{[%clk 0:00:23.5]} 33... Kc6 {[%clk 0:01:54.4]} 34. Ne4 {[%clk 0:00:23.7]} 34...
Be1 {[%clk 0:01:53.4]} 35. Ng5 {[%clk 0:00:23.3]} 1-0

[Event "Late-Titled-Tuesday-Blitz-February-06-2024"]
[Site "Chess.com"]
[Date "2024.02.06"]
[Round "5"]
[White "HansOnTwitch"]
[Black "Rutricks"]
[Result "1-0"]
[WhiteElo "3153"]
[BlackElo "2724"]
[TimeControl "180+1"]
[EndTime "14:53:23 PST"]
[Termination "HansOnTwitch won by resignation"]

1. c4 {[%clk 0:03:00.9]} 1... g6 {[%clk 0:02:51.7]} 2. Nc3 {[%clk 0:02:59.9]}
2... Bg7 {[%clk 0:02:52.3]} 3. d4 {[%clk 0:03:00.2]} 3... d6 {[%clk 0:02:52.9]}
4. e4 {[%clk 0:03:00.3]} 4... Nd7 {[%clk 0:02:53.6]} 5. Be2 {[%clk 0:02:58.2]}
5... e5 {[%clk 0:02:54]} 6. Nf3 {[%clk 0:02:56.5]} 6... Ngf6 {[%clk 0:02:52.5]}
7. O-O {[%clk 0:02:56]} 7... O-O {[%clk 0:02:53.2]} 8. Re1 {[%clk 0:02:55.3]}
8... Re8 {[%clk 0:02:53.5]} 9. Bf1 {[%clk 0:02:50.7]} 9... exd4 {[%clk
0:02:51.1]} 10. Nxd4 {[%clk 0:02:51.6]} 10... Ng4 {[%clk 0:02:51.5]} 11. f3
{[%clk 0:02:48.3]} 11... Nge5 {[%clk 0:02:01.3]} 12. Be3 {[%clk 0:02:47.5]}
12... a6 {[%clk 0:02:01.1]} 13. Qd2 {[%clk 0:02:47]} 13... Nc5 {[%clk
0:02:00.4]} 14. Rad1 {[%clk 0:02:44.5]} 14... Bd7 {[%clk 0:02:00.2]} 15. h3
{[%clk 0:02:41.5]} 15... Ne6 {[%clk 0:01:56]} 16. Qf2 {[%clk 0:02:36.3]} 16...
Nc6 {[%clk 0:01:49]} 17. Nc2 {[%clk 0:02:31.5]} 17... Bxc3 {[%clk 0:01:25.1]}
18. bxc3 {[%clk 0:02:31.4]} 18... Qf6 {[%clk 0:01:25.8]} 19. Nd4 {[%clk
0:02:31.6]} 19... Nc5 {[%clk 0:01:25]} 20. Nxc6 {[%clk 0:02:28.4]} 20... Bxc6
{[%clk 0:01:23.8]} 21. Bd4 {[%clk 0:02:29]} 21... Qe7 {[%clk 0:01:22.7]} 22. e5
{[%clk 0:02:28]} 22... Ne6 {[%clk 0:01:23.2]} 23. exd6 {[%clk 0:02:28.3]} 23...
Qxd6 {[%clk 0:01:23.6]} 24. Bf6 {[%clk 0:02:21]} 24... Qf4 {[%clk 0:01:22.8]}
25. Be5 {[%clk 0:02:20.5]} 25... Qg5 {[%clk 0:01:23.1]} 26. h4 {[%clk
0:02:19.4]} 26... Qe7 {[%clk 0:01:22.6]} 27. h5 {[%clk 0:02:15.9]} 27... f6
{[%clk 0:01:23]} 28. Bd4 {[%clk 0:02:10]} 28... Qf7 {[%clk 0:01:21]} 29. hxg6
{[%clk 0:02:10.4]} 29... hxg6 {[%clk 0:01:21.9]} 30. Qg3 {[%clk 0:02:10.6]}
30... Nxd4 {[%clk 0:01:20.1]} 31. cxd4 {[%clk 0:02:11.5]} 31... Rxe1 {[%clk
0:01:12.9]} 32. Rxe1 {[%clk 0:02:12.4]} 32... Re8 {[%clk 0:01:13]} 33. Rb1
{[%clk 0:02:03.2]} 33... b6 {[%clk 0:01:00]} 34. d5 {[%clk 0:02:03.3]} 34... Ba4
{[%clk 0:01:00.3]} 35. Bd3 {[%clk 0:02:03.1]} 35... Kg7 {[%clk 0:00:56.9]} 36.
Rb4 {[%clk 0:01:54.1]} 36... b5 {[%clk 0:00:52.5]} 37. cxb5 {[%clk 0:01:52.7]}
37... axb5 {[%clk 0:00:53.4]} 38. Bxg6 {[%clk 0:01:51.1]} 38... Qxg6 {[%clk
0:00:20.3]} 39. Rg4 {[%clk 0:01:50.7]} 39... Qxg4 {[%clk 0:00:21.1]} 40. Qxg4+
{[%clk 0:01:51.6]} 40... Kf7 {[%clk 0:00:21.7]} 41. Qd7+ {[%clk 0:01:51.8]}
41... Re7 {[%clk 0:00:22.4]} 42. Qc6 {[%clk 0:01:52.5]} 42... b4 {[%clk
0:00:22.7]} 43. Qxa4 {[%clk 0:01:52.1]} 1-0

[Event "Late-Titled-Tuesday-Blitz-February-06-2024"]
[Site "Chess.com"]
[Date "2024.02.06"]
[Round "5"]
[White "LUISMIGUELOV"]
[Black "Zallio"]
[Result "0-1"]
[WhiteElo "2209"]
[BlackElo "2132"]
[TimeControl "180+1"]
[EndTime "14:53:30 PST"]
[Termination "Zallio won on time"]

1. d4 {[%clk 0:03:00.9]} 1... d5 {[%clk 0:02:57.1]} 2. c3 {[%clk 0:02:59.6]}
2... Nf6 {[%clk 0:02:56.2]} 3. Bg5 {[%clk 0:02:59.2]} 3... Nbd7 {[%clk
0:02:48.7]} 4. Nd2 {[%clk 0:02:58.2]} 4... e5 {[%clk 0:02:48.6]} 5. dxe5 {[%clk
0:02:53.2]} 5... Nxe5 {[%clk 0:02:48.5]} 6. Ngf3 {[%clk 0:02:53.2]} 6... Ng6
{[%clk 0:02:43]} 7. e3 {[%clk 0:02:50.8]} 7... Be7 {[%clk 0:02:42.9]} 8. Bd3
{[%clk 0:02:49.5]} 8... O-O {[%clk 0:02:42]} 9. h4 {[%clk 0:02:48.8]} 9... h6
{[%clk 0:02:31.9]} 10. Bxf6 {[%clk 0:02:47.7]} 10... Bxf6 {[%clk 0:02:31.7]} 11.
h5 {[%clk 0:02:47.9]} 11... Ne5 {[%clk 0:02:32.1]} 12. Nxe5 {[%clk 0:02:47]}
12... Bxe5 {[%clk 0:02:32.5]} 13. Bc2 {[%clk 0:02:31.2]} 13... c5 {[%clk
0:02:30.3]} 14. Nf3 {[%clk 0:02:30.8]} 14... Bf6 {[%clk 0:02:30]} 15. Qd3 {[%clk
0:02:30.2]} 15... Re8 {[%clk 0:02:21.7]} 16. O-O-O {[%clk 0:02:26.3]} 16... Be6
{[%clk 0:02:07.5]} 17. Rhg1 {[%clk 0:02:09]} 17... Qa5 {[%clk 0:02:01.3]} 18.
Bb1 {[%clk 0:01:53.4]} 18... b5 {[%clk 0:01:59.5]} 19. g4 {[%clk 0:01:52.1]}
19... b4 {[%clk 0:01:59.3]} 20. g5 {[%clk 0:01:45]} 20... hxg5 {[%clk 0:01:55]}
21. Nxg5 {[%clk 0:01:44.1]} 21... bxc3 {[%clk 0:01:53.6]} 22. Qh7+ {[%clk
0:00:47.1]} 22... Kf8 {[%clk 0:01:52.7]} 23. Nxe6+ {[%clk 0:00:46]} 23... Rxe6
{[%clk 0:01:45.6]} 24. b3 {[%clk 0:00:11.3]} 24... Qa3+ {[%clk 0:01:40.5]} 25.
Kc2 {[%clk 0:00:11.7]} 25... Qb2+ {[%clk 0:01:33.5]} 26. Kd3 {[%clk 0:00:11.3]}
26... c4+ {[%clk 0:01:34]} 0-1